fUSD/lending_fUSD_20250105
["ID","MTS","AMOUNT","RATE_DAILY","PERIOD"]
[347711676,1736077838303,-500.0,8.219e-05,2]
[347711677,1736077838312,-1070.96,8.219e-05,2]
[347711678,1736077838322,-500.0,8.219e-05,2]
[347711679,1736077838331,-500.0,8.219e-05,2]
[347711680,1736077838341,-500.0,8.219e-05,2]
[347711681,1736077838351,-500.0,8.219e-05,2]
[347711682,1736077838360,-578.08,8.219e-05,2]
[347711683,1736077838370,-1399.43,8.219e-05,2]
[347711684,1736077838379,-566.36,8.219e-05,2]
[347711685,1736077838394,-500.0,8.219e-05,2]
[347711686,1736077838403,-500.0,8.219e-05,2]
[347711687,1736077838413,-500.0,8.219e-05,2]
[347711688,1736077838422,-500.0,8.219e-05,2]
[347711689,1736077838433,-500.0,8.219e-05,2]
[347711690,1736077838443,-500.0,8.219e-05,2]
[347711691,1736077838453,-500.0,8.219e-05,2]
[347711692,1736077838465,-500.0,8.219e-05,2]
[347711693,1736077838476,-500.0,8.219e-05,2]
[347711694,1736077838485,-500.0,8.219e-05,2]
[347711695,1736077838494,-519.71,8.219e-05,2]
[347711696,1736077838503,-500.0,8.219e-05,2]
[347711697,1736077838513,-500.0,8.219e-05,2]
[347711698,1736077838523,-500.0,8.219e-05,2]
[347711700,1736077838532,-500.0,8.219e-05,2]
[347711702,1736077838541,-500.0,8.219e-05,2]
[347711704,1736077838551,-732.34,8.219e-05,2]
[347711706,1736077838560,-248.95680877,8.219e-05,2]
[347711707,1736077838570,-707.82,8.219e-05,2]
[347711708,1736077838579,-215.83026029,8.219e-05,2]
[347711709,1736077838588,-2098.99,8.219e-05,2]
[347711710,1736077838597,-740.06,8.219e-05,2]
[347711711,1736077838606,-500.0,8.219e-05,2]
[347711712,1736077838617,-612.93,8.219e-05,2]
[347711713,1736077838626,-500.0,8.219e-05,2]
[347711714,1736077838635,-6012.7,8.219e-05,2]
[347711715,1736077838646,-500.0,8.219e-05,2]
[347711716,1736077838656,-796.45,8.219e-05,2]
[347711717,1736077838665,-500.0,8.219e-05,2]
[347711718,1736077838675,-500.0,8.219e-05,2]
[347711719,1736077838685,-500.0,8.219e-05,2]
[347711720,1736077838694,-500.0,8.219e-05,2]
[347711721,1736077838704,-500.0,8.219e-05,2]
[347711722,1736077838714,-853.48,8.219e-05,2]
[347711723,1736077838723,-5593.14,8.219e-05,2]
[347711724,1736077838732,-500.0,8.219e-05,2]
[347711725,1736077838742,-500.0,8.219e-05,2]
[347711726,1736077838752,-500.0,8.219e-05,2]
[347711727,1736077838763,-559.6115186,8.219e-05,2]
[347711728,1736077838772,-500.0,8.219e-05,2]
[347711729,1736077838781,-2047.77,8.219e-05,2]
[347711730,1736077838792,-500.0,8.219e-05,2]
[347711731,1736077838801,-500.0,8.219e-05,2]
[347711732,1736077838811,-500.0,8.219e-05,2]
[347711733,1736077838820,-964.08,8.219e-05,2]
[347711734,1736077838829,-933.81,8.219e-05,2]
[347711735,1736077838838,-500.0,8.219e-05,2]
[347711736,1736077838847,-500.0,8.219e-05,2]
[347711737,1736077838857,-702.7,8.219e-05,2]
[347711738,1736077838866,-500.0,8.219e-05,2]
[347711739,1736077838875,-700.64,8.219e-05,2]
[347711740,1736077838884,-789.92,8.219e-05,2]
[347711741,1736077838894,-500.0,8.219e-05,2]
[347711742,1736077838903,-500.0,8.219e-05,2]
[347711743,1736077838913,-500.0,8.219e-05,2]
[347711744,1736077838921,-500.0,8.219e-05,2]
[347711745,1736077838931,-500.0,8.219e-05,2]
[347711746,1736077838940,-1141.75,8.219e-05,2]
[347711747,1736077838949,-500.0,8.219e-05,2]
[347711748,1736077838958,-500.0,8.219e-05,2]
[347711749,1736077838967,-500.0,8.219e-05,2]
[347711750,1736077838976,-582.93,8.219e-05,2]
[347711751,1736077838985,-500.0,8.219e-05,2]
[347711752,1736077838994,-500.0,8.219e-05,2]
[347711753,1736077839003,-500.0,8.219e-05,2]
[347711754,1736077839013,-500.0,8.219e-05,2]
[347711755,1736077839022,-861.87,8.219e-05,2]
[347711756,1736077839031,-500.0,8.219e-05,2]
[347711757,1736077839041,-3575.88,8.219e-05,2]
[347711758,1736077839050,-621.86,8.219e-05,2]
[347711759,1736077839059,-500.0,8.219e-05,2]
[347711760,1736077839068,-500.0,8.219e-05,2]
[347711761,1736077839077,-675.19,8.219e-05,2]
[347711762,1736077839086,-500.0,8.219e-05,2]
[347711763,1736077839095,-500.0,8.219e-05,2]
[347711764,1736077839104,-1451.45,8.219e-05,2]
[347711765,1736077839113,-500.0,8.219e-05,2]
[347711766,1736077839123,-631.93,8.219e-05,2]
[347711767,1736077839132,-500.0,8.219e-05,2]
[347711768,1736077839141,-1044.61,8.219e-05,2]
[347711769,1736077839150,-500.0,8.219e-05,2]
[347711770,1736077839160,-500.0,8.219e-05,2]
[347711771,1736077839168,-796.85,8.219e-05,2]
[347711772,1736077839177,-2422.63,8.219e-05,2]
[347711773,1736077839186,-500.0,8.219e-05,2]
[347711774,1736077839195,-891.67,8.219e-05,2]
[347711775,1736077839205,-500.0,8.219e-05,2]
[347711776,1736077839213,-500.0,8.219e-05,2]
[347711777,1736077839223,-553.01,8.219e-05,2]
[347711778,1736077839231,-558.0,8.219e-05,2]
[347711779,1736077839240,-500.0,8.219e-05,2]
[347711780,1736077839250,-1153.73,8.219e-05,2]
[347711781,1736077839259,-500.0,8.219e-05,2]
[347711782,1736077839268,-1238.51,8.219e-05,2]
[347711783,1736077839277,-500.0,8.219e-05,2]
[347711784,1736077839287,-1466.22,8.219e-05,2]
[347711785,1736077839296,-882.11,8.219e-05,2]
[347711786,1736077839305,-500.0,8.219e-05,2]
[347711787,1736077839314,-500.0,8.219e-05,2]
[347711788,1736077839322,-500.0,8.219e-05,2]
[347711789,1736077839331,-518.53,8.219e-05,2]
[347711790,1736077839340,-936.55,8.219e-05,2]
[347711791,1736077839349,-500.0,8.219e-05,2]
[347711792,1736077839358,-598.63,8.219e-05,2]
[347711793,1736077839368,-4094.6,8.219e-05,2]
[347711794,1736077839377,-500.0,8.219e-05,2]
[347711795,1736077839390,-500.0,8.219e-05,2]
[347711796,1736077839399,-1565.14,8.219e-05,2]
[347711797,1736077839408,-500.0,8.219e-05,2]
[347711798,1736077839418,-1545.81,8.219e-05,2]
[347711799,1736077839426,-2748.66,8.219e-05,2]
[347711800,1736077839436,-500.0,8.219e-05,2]
[347711801,1736077839445,-5467.77,8.219e-05,2]
[347711802,1736077839454,-500.0,8.219e-05,2]
[347711803,1736077839463,-500.0,8.219e-05,2]
[347711804,1736077839472,-500.0,8.219e-05,2]
[347711805,1736077839481,-500.0,8.219e-05,2]
[347711806,1736077839490,-500.0,8.219e-05,2]
[347711807,1736077839500,-500.0,8.219e-05,2]
[347711808,1736077839509,-500.0,8.219e-05,2]
[347711809,1736077839518,-500.0,8.219e-05,2]
[347711810,1736077839527,-4960.26,8.219e-05,2]
[347711811,1736077839536,-500.0,8.219e-05,2]
[347711812,1736077839545,-500.0,8.219e-05,2]
[347711813,1736077839556,-257.33644815,8.219e-05,2]
[347711814,1736077839566,-489.31677513,8.219e-05,2]
[347711815,1736077839576,-500.0,8.219e-05,2]
[347711816,1736077839585,-500.0,8.219e-05,2]
[347711817,1736077839594,-500.0,8.219e-05,2]
[347711818,1736077839603,-500.0,8.219e-05,2]
[347711819,1736077839612,-500.0,8.219e-05,2]
[347711820,1736077839621,-920.55,8.219e-05,2]
[347711821,1736077839630,-500.0,8.219e-05,2]
[347711822,1736077839639,-500.0,8.219e-05,2]
[347711823,1736077839650,-1172.65244,8.219e-05,2]
[347711824,1736077839660,-500.0,8.219e-05,2]
[347711825,1736077839669,-861.97,8.219e-05,2]
[347711826,1736077839678,-1676.16,8.219e-05,2]
[347711827,1736077839687,-1506.56,8.219e-05,2]
[347711828,1736077839696,-544.29,8.219e-05,2]
[347711829,1736077839705,-500.0,8.219e-05,2]
[347711830,1736077839714,-500.0,8.219e-05,2]
[347711831,1736077839724,-500.0,8.219e-05,2]
[347711832,1736077839734,-500.0,8.219e-05,2]
[347711833,1736077839743,-500.0,8.219e-05,2]
[347711834,1736077839753,-5003.34,8.219e-05,2]
[347711835,1736077839763,-500.0,8.219e-05,2]
[347711836,1736077839774,-500.0,8.219e-05,2]
[347711837,1736077839783,-5455.76,8.219e-05,2]
[347711838,1736077839792,-500.0,8.219e-05,2]
[347711839,1736077839802,-500.0,8.219e-05,2]
[347711840,1736077839811,-500.0,8.219e-05,2]
[347711841,1736077839820,-500.0,8.219e-05,2]
[347711842,1736077839829,-736.71,8.219e-05,2]
[347711845,1736077840044,-500.0,8.219e-05,2]
[347711846,1736077840055,-500.13,8.219e-05,2]
[347711847,1736077840064,-500.0,8.219e-05,2]
[347711848,1736077840073,-500.0,8.219e-05,2]
[347711849,1736077840082,-500.0,8.219e-05,2]
[347711850,1736077840092,-500.0,8.219e-05,2]
[347711851,1736077840101,-500.0,8.219e-05,2]
[347711852,1736077840110,-4518.67,8.219e-05,2]
[347711853,1736077840120,-500.0,8.219e-05,2]
[347711854,1736077840129,-1188.36,8.219e-05,2]
[347711855,1736077840140,-1113.222451,8.219e-05,2]
[347711856,1736077840150,-500.0,8.219e-05,2]
[347711857,1736077840159,-500.0,8.219e-05,2]
[347711858,1736077840168,-6256.28,8.219e-05,2]
[347711859,1736077840179,-500.0,8.219e-05,2]
[347711860,1736077840189,-12614.89,8.219e-05,2]
[347711861,1736077840198,-500.0,8.219e-05,2]
[347711862,1736077840207,-500.0,8.219e-05,2]
[347711863,1736077840217,-1501.17,8.219e-05,2]
[347711864,1736077840226,-500.0,8.219e-05,2]
[347711865,1736077840235,-500.0,8.219e-05,2]
[347711866,1736077840244,-500.0,8.219e-05,2]
[347711867,1736077840254,-500.0,8.219e-05,2]
[347711868,1736077840263,-1877.08,8.219e-05,2]
[347711869,1736077840273,-500.0,8.219e-05,2]
[347711870,1736077840282,-500.0,8.219e-05,2]
[347711871,1736077840292,-563.86,8.219e-05,2]
[347711872,1736077840301,-614.81,8.219e-05,2]
[347711873,1736077840310,-500.0,8.219e-05,2]
[347711874,1736077840319,-500.0,8.219e-05,2]
[347711875,1736077840328,-155.490195,8.219e-05,2]
[347711876,1736077840337,-5948.84,8.219e-05,2]
[347711877,1736077840347,-500.0,8.219e-05,2]
[347711878,1736077840356,-500.0,8.219e-05,2]
[347711879,1736077840365,-500.0,8.219e-05,2]
[347711880,1736077840374,-1336.8,8.219e-05,2]
[347711881,1736077840384,-500.0,8.219e-05,2]
[347711882,1736077840396,-500.0,8.219e-05,2]
[347711883,1736077840407,-500.0,8.219e-05,2]
[347711884,1736077840417,-500.0,8.219e-05,2]
[347711885,1736077840426,-500.0,8.219e-05,2]
[347711886,1736077840438,-500.0,8.219e-05,2]
[347711887,1736077840448,-500.0,8.219e-05,2]
[347711888,1736077840459,-695.58,8.219e-05,2]
[347711889,1736077840470,-500.0,8.219e-05,2]
[347711890,1736077840479,-500.0,8.219e-05,2]
[347711891,1736077840490,-500.0,8.219e-05,2]
[347711892,1736077840499,-500.0,8.219e-05,2]
[347711893,1736077840508,-500.0,8.219e-05,2]
[347711894,1736077840517,-500.0,8.219e-05,2]
[347711895,1736077840527,-656.54,8.219e-05,2]
[347711896,1736077840536,-500.0,8.219e-05,2]
[347711897,1736077840545,-16452.68,8.219e-05,2]
[347711898,1736077840554,-500.0,8.219e-05,2]
[347711899,1736077840563,-500.0,8.219e-05,2]
[347711900,1736077840571,-656.81,8.219e-05,2]
[347711901,1736077840580,-500.0,8.219e-05,2]
[347711902,1736077840590,-2520.72,8.219e-05,2]
[347711903,1736077840599,-500.0,8.219e-05,2]
[347711904,1736077840608,-500.0,8.219e-05,2]
[347711905,1736077840617,-1330.53,8.219e-05,2]
[347711906,1736077840627,-500.0,8.219e-05,2]
[347711907,1736077840637,-500.0,8.219e-05,2]
[347711908,1736077840647,-500.0,8.219e-05,2]
[347711909,1736077840660,-500.0,8.219e-05,2]
[347711910,1736077840677,-579.66,8.219e-05,2]
[347711911,1736077840687,-1361.37,8.219e-05,2]
[347711912,1736077840697,-500.0,8.219e-05,2]
[347711913,1736077840706,-500.0,8.219e-05,2]
[347711914,1736077840715,-500.0,8.219e-05,2]
[347711915,1736077840725,-500.0,8.219e-05,2]
[347711916,1736077840735,-1152.65,8.219e-05,2]
[347711917,1736077840744,-500.0,8.219e-05,2]
[347711918,1736077840754,-500.0,8.219e-05,2]
[347711919,1736077840764,-1619.18,8.219e-05,2]
[347711920,1736077840774,-500.0,8.219e-05,2]
[347711921,1736077840783,-502.02292164,8.219e-05,2]
[347711922,1736077840793,-500.0,8.219e-05,2]
[347711923,1736077840803,-500.0,8.219e-05,2]
[347711924,1736077840812,-500.0,8.219e-05,2]
[347711925,1736077840821,-500.0,8.219e-05,2]
[347711926,1736077840831,-1628.83,8.219e-05,2]
[347711927,1736077840841,-500.0,8.219e-05,2]
[347711928,1736077840850,-1774.99,8.219e-05,2]
[347711929,1736077840860,-1073.36,8.219e-05,2]
[347711930,1736077840869,-500.0,8.219e-05,2]
[347711931,1736077840878,-779.56,8.219e-05,2]
[347711932,1736077840887,-500.0,8.219e-05,2]
[347711933,1736077840897,-502.31806837,8.219e-05,2]
[347711934,1736077840907,-2695.05,8.219e-05,2]
[347711935,1736077840916,-500.0,8.219e-05,2]
[347711936,1736077840926,-583.90633784,8.219e-05,2]
[347711937,1736077840935,-2863.65,8.219e-05,2]
[347711938,1736077840945,-500.0,8.219e-05,2]
[347711939,1736077840954,-500.0,8.219e-05,2]
[347711940,1736077840964,-500.0,8.219e-05,2]
[347711941,1736077840973,-536.88,8.219e-05,2]
[347711942,1736077840983,-500.0,8.219e-05,2]
[347711943,1736077840992,-1125.17,8.219e-05,2]
[347711944,1736077841001,-500.0,8.219e-05,2]
[347711945,1736077841010,-763.52,8.219e-05,2]
[347711946,1736077841020,-298.92508854,8.219e-05,2]
[347711947,1736077841029,-500.0,8.219e-05,2]
[347711948,1736077841038,-500.0,8.219e-05,2]
[347711949,1736077841048,-1594.61,8.219e-05,2]
[347711950,1736077841057,-500.0,8.219e-05,2]
[347711951,1736077841066,-500.0,8.219e-05,2]
[347711952,1736077841076,-1889.76,8.219e-05,2]
[347711953,1736077841086,-500.0,8.219e-05,2]
[347711954,1736077841095,-1696.48,8.219e-05,2]
[347711955,1736077841105,-500.0,8.219e-05,2]
[347711956,1736077841114,-500.0,8.219e-05,2]
[347711957,1736077841124,-500.0,8.219e-05,2]
[347711958,1736077841133,-2621.36,8.219e-05,2]
[347711959,1736077841142,-500.0,8.219e-05,2]
[347711960,1736077841151,-500.0,8.219e-05,2]
[347711961,1736077841161,-500.0,8.219e-05,2]
[347711962,1736077841170,-1366.06,8.219e-05,2]
[347711963,1736077841179,-500.0,8.219e-05,2]
[347711964,1736077841188,-500.0,8.219e-05,2]
[347711965,1736077841198,-1255.03,8.219e-05,2]
[347711966,1736077841207,-500.0,8.219e-05,2]
[347711967,1736077841216,-1597.01,8.219e-05,2]
[347711968,1736077841226,-500.0,8.219e-05,2]
[347711969,1736077841235,-501.17,8.219e-05,2]
[347711970,1736077841244,-500.0,8.219e-05,2]
[347711971,1736077841254,-500.0,8.219e-05,2]
[347711972,1736077841263,-500.0,8.219e-05,2]
[347711973,1736077841273,-500.0,8.219e-05,2]
[347711974,1736077841282,-500.0,8.219e-05,2]
[347711975,1736077841292,-500.0,8.219e-05,2]
[347711976,1736077841302,-4702.44,8.219e-05,2]
[347711977,1736077841311,-500.0,8.219e-05,2]
[347711978,1736077841320,-579.06,8.219e-05,2]
[347711979,1736077841329,-500.0,8.219e-05,2]
[347711980,1736077841339,-500.0,8.219e-05,2]
[347711981,1736077841348,-500.0,8.219e-05,2]
[347711982,1736077841357,-500.0,8.219e-05,2]
[347711983,1736077841366,-500.0,8.219e-05,2]
[347711984,1736077841375,-500.0,8.219e-05,2]
[347711985,1736077841384,-500.0,8.219e-05,2]
[347711986,1736077841396,-500.0,8.219e-05,2]
[347711987,1736077841405,-500.0,8.219e-05,2]
[347711988,1736077841415,-500.0,8.219e-05,2]
[347711989,1736077841425,-500.0,8.219e-05,2]
[347711990,1736077841434,-500.0,8.219e-05,2]
[347711991,1736077841443,-500.0,8.219e-05,2]
[347711992,1736077841452,-500.0,8.219e-05,2]
[347711993,1736077841461,-1134.87,8.219e-05,2]
[347711994,1736077841471,-4016.18,8.219e-05,2]
[347711995,1736077841480,-1438.49,8.219e-05,2]
[347711996,1736077841489,-500.0,8.219e-05,2]
[347711997,1736077841499,-500.0,8.219e-05,2]
[347711998,1736077841508,-500.0,8.219e-05,2]
[347711999,1736077841517,-500.0,8.219e-05,2]
[347712000,1736077841527,-875.33405809,8.219e-05,2]
[347712001,1736077842874,-313.03594191,8.219e-05,2]
[347712002,1736077842884,-63.10235319,8.219e-05,2]
[347712003,1736077842903,-944.82764681,8.219e-05,2]
[347712004,1736077842914,-564.25,8.219e-05,2]
[347712005,1736077842923,-2090.92235319,8.219e-05,2]
[347712006,1736077842934,-3762.87764681,8.219e-05,2]
[347712007,1736077842943,-500.0,8.219e-05,2]
[347712008,1736077842953,-455.29038515,8.219e-05,2]
[347712009,1736077842963,-468.83196804,8.219e-05,2]
[347712010,1736077842977,-255.31165551,8.219e-05,2]
[347712035,1736077843833,-75.60637645,8.219e-05,2]
[347712036,1736077843843,-500.0,8.219e-05,2]
[347712037,1736077843852,-294.58106675,8.219e-05,2]
[347712038,1736077843877,-3.51303825,8.219e-05,2]
[347712039,1736077843887,-500.0,8.219e-05,2]
[347712040,1736077843896,-500.0,8.219e-05,2]
[347712041,1736077843906,-1191.39,8.219e-05,2]
[347712042,1736077843917,-500.0,8.219e-05,2]
[347712043,1736077843927,-500.0,8.219e-05,2]
[347712044,1736077843935,-500.0,8.219e-05,2]
[347712045,1736077843945,-500.0,8.219e-05,2]
[347712046,1736077843954,-500.0,8.219e-05,2]
[347712047,1736077843963,-500.0,8.219e-05,2]
[347712048,1736077843973,-743.67,8.219e-05,2]
[347712049,1736077843982,-500.0,8.219e-05,2]
[347712050,1736077843991,-624.57,8.219e-05,2]
[347712051,1736077844000,-500.0,8.219e-05,2]
[347712052,1736077844010,-10885.06,8.219e-05,2]
[347712053,1736077844019,-8164.25,8.219e-05,2]
[347712054,1736077844028,-500.0,8.219e-05,2]
[347712055,1736077844037,-500.0,8.219e-05,2]
[347712056,1736077844046,-2029.13,8.219e-05,2]
[347712057,1736077844057,-238.77866715,8.219e-05,2]
[347712058,1736077844066,-500.0,8.219e-05,2]
[347712059,1736077844075,-500.0,8.219e-05,2]
[347712060,1736077844084,-1294.01,8.219e-05,2]
[347712061,1736077844093,-500.0,8.219e-05,2]
[347712062,1736077844101,-500.0,8.219e-05,2]
[347712063,1736077844110,-826.38,8.219e-05,2]
[347712064,1736077844120,-500.0,8.219e-05,2]
[347712065,1736077844129,-500.0,8.219e-05,2]
[347712066,1736077844138,-847.41,8.219e-05,2]
[347712067,1736077844148,-500.0,8.219e-05,2]
[347712068,1736077844157,-1674.94,8.219e-05,2]
[347712069,1736077844169,-500.0,8.219e-05,2]
[347712070,1736077844178,-1922.04,8.219e-05,2]
[347712071,1736077844188,-4178.12,8.219e-05,2]
[347712072,1736077844197,-500.0,8.219e-05,2]
[347712073,1736077844207,-282.754514,8.219e-05,2]
[347712074,1736077844216,-614.12,8.219e-05,2]
[347712075,1736077844225,-500.0,8.219e-05,2]
[347712076,1736077844235,-500.0,8.219e-05,2]
[347712077,1736077844244,-500.0,8.219e-05,2]
[347712078,1736077844253,-500.0,8.219e-05,2]
[347712079,1736077844262,-500.0,8.219e-05,2]
[347712080,1736077844271,-500.0,8.219e-05,2]
[347712081,1736077844280,-500.0,8.219e-05,2]
[347712082,1736077844289,-500.0,8.219e-05,2]
[347712083,1736077844298,-500.0,8.219e-05,2]
[347712084,1736077844307,-2015.35,8.219e-05,2]
[347712085,1736077844316,-500.0,8.219e-05,2]
[347712086,1736077844324,-500.0,8.219e-05,2]
[347712087,1736077844334,-500.0,8.219e-05,2]
[347712088,1736077844344,-500.0,8.219e-05,2]
[347712089,1736077844353,-500.0,8.219e-05,2]
[347712090,1736077844362,-11657.42,8.219e-05,2]
[347712091,1736077844371,-2860.37,8.219e-05,2]
[347712092,1736077844380,-776.51,8.219e-05,2]
[347712093,1736077844392,-500.0,8.219e-05,2]
[347712094,1736077844401,-500.0,8.219e-05,2]
[347712095,1736077844412,-500.0,8.219e-05,2]
[347712096,1736077844422,-500.0,8.219e-05,2]
[347712097,1736077844432,-1055.64,8.219e-05,2]
[347712098,1736077844441,-1719.67,8.219e-05,2]
[347712099,1736077844451,-500.0,8.219e-05,2]
[347712100,1736077844461,-500.0,8.219e-05,2]
[347712101,1736077844471,-500.0,8.219e-05,2]
[347712102,1736077844480,-500.0,8.219e-05,2]
[347712103,1736077844489,-4243.83,8.219e-05,2]
[347712104,1736077844498,-500.0,8.219e-05,2]
[347712105,1736077844508,-500.0,8.219e-05,2]
[347712106,1736077844517,-6577.83,8.219e-05,2]
[347712107,1736077844526,-500.0,8.219e-05,2]
[347712108,1736077844535,-1904.42,8.219e-05,2]
[347712109,1736077844544,-712.42,8.219e-05,2]
[347712110,1736077844554,-500.0,8.219e-05,2]
[347712111,1736077844563,-500.0,8.219e-05,2]
[347712112,1736077844573,-4673.99,8.219e-05,2]
[347712113,1736077844582,-500.0,8.219e-05,2]
[347712114,1736077844592,-7032.4,8.219e-05,2]
[347712115,1736077844601,-500.0,8.219e-05,2]
[347712116,1736077844610,-813.11,8.219e-05,2]
[347712117,1736077844619,-500.0,8.219e-05,2]
[347712118,1736077844628,-500.0,8.219e-05,2]
[347712119,1736077844638,-911.49,8.219e-05,2]
[347712120,1736077844647,-500.0,8.219e-05,2]
[347712121,1736077844656,-500.0,8.219e-05,2]
[347712122,1736077844666,-500.0,8.219e-05,2]
[347712123,1736077844675,-4504.93,8.219e-05,2]
[347712124,1736077844684,-1698.03,8.219e-05,2]
[347712125,1736077844694,-1145.98,8.219e-05,2]
[347712126,1736077844704,-500.0,8.219e-05,2]
[347712127,1736077844713,-710.05,8.219e-05,2]
[347712128,1736077844722,-500.0,8.219e-05,2]
[347712129,1736077844731,-500.0,8.219e-05,2]
[347712130,1736077844740,-328.47430104,8.219e-05,2]
[347712131,1736077844750,-500.0,8.219e-05,2]
[347712132,1736077844759,-500.0,8.219e-05,2]
[347712133,1736077844768,-500.0,8.219e-05,2]
[347712134,1736077844778,-500.0,8.219e-05,2]
[347712135,1736077844787,-773.58,8.219e-05,2]
[347712136,1736077844796,-892.05,8.219e-05,2]
[347712137,1736077844805,-500.0,8.219e-05,2]
[347712138,1736077844815,-500.0,8.219e-05,2]
[347712139,1736077844825,-500.0,8.219e-05,2]
[347712140,1736077844834,-500.0,8.219e-05,2]
[347712141,1736077844843,-500.0,8.219e-05,2]
[347712142,1736077844853,-500.0,8.219e-05,2]
[347712143,1736077844862,-500.0,8.219e-05,2]
[347712144,1736077844872,-500.0,8.219e-05,2]
[347712145,1736077844881,-1067.33,8.219e-05,2]
[347712146,1736077844890,-500.0,8.219e-05,2]
[347712147,1736077844900,-1151.78,8.219e-05,2]
[347712148,1736077844910,-2458.64,8.219e-05,2]
[347712149,1736077844920,-500.0,8.219e-05,2]
[347712150,1736077844929,-3036.51,8.219e-05,2]
[347712151,1736077844938,-500.0,8.219e-05,2]
[347712152,1736077844947,-500.0,8.219e-05,2]
[347712153,1736077844956,-1718.34,8.219e-05,2]
[347712154,1736077844965,-500.0,8.219e-05,2]
[347712155,1736077844974,-1454.12,8.219e-05,2]
[347712156,1736077844983,-500.0,8.219e-05,2]
[347712157,1736077844992,-851.29,8.219e-05,2]
[347712158,1736077845001,-500.0,8.219e-05,2]
[347712159,1736077845011,-500.0,8.219e-05,2]
[347712160,1736077845020,-3993.07,8.219e-05,2]
[347712161,1736077845029,-500.0,8.219e-05,2]
[347712162,1736077845038,-500.0,8.219e-05,2]
[347712163,1736077845047,-2096.82,8.219e-05,2]
[347712164,1736077845056,-1089.35,8.219e-05,2]
[347712165,1736077845065,-500.0,8.219e-05,2]
[347712166,1736077845074,-500.0,8.219e-05,2]
[347712167,1736077845084,-892.7,8.219e-05,2]
[347712168,1736077845093,-500.0,8.219e-05,2]
[347712169,1736077845102,-1286.37,8.219e-05,2]
[347712170,1736077845111,-500.0,8.219e-05,2]
[347712171,1736077845120,-500.0,8.219e-05,2]
[347712172,1736077845129,-858.47,8.219e-05,2]
[347712173,1736077845139,-500.0,8.219e-05,2]
[347712174,1736077845148,-500.0,8.219e-05,2]
[347712175,1736077845157,-1752.2,8.219e-05,2]
[347712176,1736077845167,-1122.56,8.219e-05,2]
[347712177,1736077845176,-500.0,8.219e-05,2]
[347712178,1736077845186,-1127.93,8.219e-05,2]
[347712179,1736077845195,-500.0,8.219e-05,2]
[347712180,1736077845204,-500.0,8.219e-05,2]
[347712181,1736077845213,-500.0,8.219e-05,2]
[347712182,1736077845222,-929.99,8.219e-05,2]
[347712183,1736077845232,-1826.18,8.219e-05,2]
[347712184,1736077845241,-2522.13,8.219e-05,2]
[347712185,1736077845250,-960.74,8.219e-05,2]
[347712186,1736077845259,-1666.61,8.219e-05,2]
[347712187,1736077845268,-500.0,8.219e-05,2]
[347712188,1736077845277,-500.0,8.219e-05,2]
[347712189,1736077845287,-691.4,8.219e-05,2]
[347712190,1736077845296,-1167.04,8.219e-05,2]
[347712191,1736077845305,-991.36,8.219e-05,2]
[347712192,1736077845315,-500.0,8.219e-05,2]
[347712193,1736077845324,-150.0,8.219e-05,2]
[347712194,1736077845333,-500.0,8.219e-05,2]
[347712195,1736077845342,-500.0,8.219e-05,2]
[347712196,1736077845351,-500.0,8.219e-05,2]
[347712197,1736077845361,-500.0,8.219e-05,2]
[347712198,1736077845370,-500.0,8.219e-05,2]
[347712199,1736077845379,-500.0,8.219e-05,2]
[347712200,1736077845389,-500.0,8.219e-05,2]
[347712201,1736077845401,-500.0,8.219e-05,2]
[347712202,1736077845411,-500.0,8.219e-05,2]
[347712203,1736077845421,-500.0,8.219e-05,2]
[347712204,1736077845430,-250.0,8.219e-05,2]
[347712205,1736077845440,-160.74,8.219e-05,2]